Cogmind - Beta 17 @@@ ROGUE MODE // 2026.06.25 @ 17:06:25 Player: CloudSeaKing Result: Destroyed by B-99 Colossus with Multirail Performance ------------- Evolutions (9) 4500 Regions Visited (16) 3200 Robots Destroyed (132) 660 Value Destroyed (6289) 6289 Prototype IDs (28) 560 Alien Tech Used (1) 200 Bonus (1260) 1260 TOTAL SCORE: 16669 Bonus ------- Registered with UFD 300 Met Optimus in HQ 500 Met Zhirov 300 Met Warlord at Base 500 MAIN.C Attacked Warlord 500 Warlord Defense Kills 1264 Friendly Fire -2104 Cogmind --------- Core Integrity 0/1600 Matter 216/300 Energy 100/100 System Corruption 3% Temperature Cool (0) Movement Hovering (70) Location -1/Access Parts ------- > --- POWER (3) -------- (None) > --- PROPULSION (9) --- Improved Gyrokinetic Inverter > --- UTILITY (9) ------ Advanced Signal Interpreter > --- WEAPON (4) ------- (None) > --- INVENTORY (5) ---- (None) Peak State ------------ > --- POWER ------------ Light Antimatter Reactor Light Antimatter Reactor Micro Antimatter Reactor > --- PROPULSION ------- Gyrokinetic Inverter Gyrokinetic Inverter Improved Antigrav System Improved Antigrav System Improved Antigrav System Improved Antigrav System Improved Antigrav System Improved Antigrav System Improved Antigrav System > --- UTILITY ---------- Advanced Power Amplifier Advanced Heat Sink Advanced Cooling System Large Storage Unit Improved Melee Analysis Suite Advanced Melee Analysis Suite Core Analyzer Improved Transmission Jammer Advanced ECM Suite > --- WEAPON ----------- Makeshift Sword Ionic Axe Ionic Axe > --- INVENTORY -------- Micro Antimatter Reactor Improved Hover Unit Advanced Weight Redist. System Long-range Tractor Beam Dispersion Rifle Matter Neutralizer Matter Neutralizer Helical Railgun Linear Accelerator Enhanced Hardcell Cannon CPS Tube Power Maul [Rating: 150] Favorites ----------- Power Improved Deuterium Engine Engine Improved Deuterium Engine Power Core Neutrino Core Reactor Light Antimatter Reactor Propulsion Flexi-carbon Leg Treads Light Treads Leg Flexi-carbon Leg Wheel Wheel Hover Unit Improved Antigrav System Flight Unit Q-thruster Utility Large Storage Unit Device Advanced Heat Sink Storage Large Storage Unit Processor Improved Melee Analysis Suite Hackware Hacking Suite Protection Hardened Heavy Armor Plating Weapon Power Maul Energy Gun Gatling Laser Energy Cannon Long-range Proton Cannon Ballistic Gun Light Assault Rifle Ballistic Cannon Mass Driver Launcher Long-range Missile Launcher Special Weapon CPS Tube Impact Weapon Power Maul Slashing Weapon Makeshift Sword Piercing Weapon Makeshift Spear Build | -11 -10 -10 -7 -5 -5 -5 -5 -4 -4 -4 -4 -4 -3 -3 -2 -1 ------- Run | Yrd Mat Sub Scr Fac Upp Upp War Pro Fac Upp Upp Zhi Pro Res Res Acc Slots Evolved 18 | . . . . 10 . . . . 2 . . . . 2 2 2 Power 2 | . . . . 1 . . . . . . . . . . . 1 Propulsion 7 | . . . . 3 . . . . 1 . . . . . 2 1 Utility 7 | . . . . 5 . . . . 1 . . . . 1 . . Weapon 2 | . . . . 1 . . . . . . . . . 1 . . Parts Attached 175 | 7 . 5 15 37 2 3 9 6 11 3 5 6 9 38 3 16 Power 24 | 1 . . 3 5 . . 2 . 2 . . 1 . 7 . 3 Engine 6 | 1 . . 3 2 . . . . . . . . . . . . Core 4 | . . . . 3 . . 1 . . . . . . . . . Reactor 14 | . . . . . . . 1 . 2 . . 1 . 7 . 3 Propulsion 58 | 2 . 2 5 10 2 . 2 1 4 . 2 3 3 16 2 4 Treads 4 | 2 . . . 1 . . . . . . . . . 1 . . Leg 28 | . . . 2 8 2 . 2 1 4 . 2 3 . 4 . . Wheel 7 | . . 2 3 1 . . . . . . . . 1 . . . Hover 16 | . . . . . . . . . . . . . 2 8 2 4 Flight 3 | . . . . . . . . . . . . . . 3 . . Utility 55 | 2 . 1 3 16 . . 1 3 5 1 2 2 4 11 1 3 Device 36 | 1 . . 2 10 . . 1 2 4 1 . . 2 10 1 2 Storage 4 | 1 . 1 1 . . . . . . . . 1 . . . . Processor 4 | . . . . 2 . . . . . . . . 1 . . 1 Hackware 2 | . . . . 2 . . . . . . . . . . . . Protection 9 | . . . . 2 . . . 1 1 . 2 1 1 1 . . Artifact . | . . . . . . . . . . . . . . . . . Weapon 38 | 2 . 2 4 6 . 3 4 2 . 2 1 . 2 4 . 6 Energy Gun 4 | . . . 2 1 . . . . . . . . . . . 1 Energy Cannon 6 | . . . . . . 1 1 . . . . . 2 . . 2 Ballistic Gun 8 | 2 . 1 2 1 . . . . . . . . . 2 . . Ballistic Cannon 4 | . . . . . . 1 1 . . . . . . . . 2 Launcher 2 | . . 1 . . . 1 . . . . . . . . . . Special Weapon 1 | . . . . . . . . . . . . . . . . 1 Impact Weapon 5 | . . . . 1 . . 2 1 . . 1 . . . . . Slashing Weapon 7 | . . . . 2 . . . 1 . 2 . . . 2 . . Piercing Weapon 1 | . . . . 1 . . . . . . . . . . . . Special Melee Weapon . | . . . . . . . . . . . . . . . . . Unidentified Prototypes 17 | . . . . 2 . . 3 1 3 . . 5 1 2 . . Corrupted Parts 3 | . . . . . . . . 1 1 . 1 . . . . . System Corruption 9 | . . . . . . . . 4 4 . 1 . . . . . Parts Lost 95 | . . . . 6 2 . . 1 8 . 5 . 14 25 . 34 Power 15 | . . . . 1 . . . . 2 . 1 . 1 6 . 4 Propulsion 34 | . . . . 1 1 . . . 4 . 2 . 5 10 . 11 Utility 28 | . . . . 3 . . . 1 2 . 1 . 6 7 . 8 Weapon 18 | . . . . 1 1 . . . . . 1 . 2 2 . 11 Highest Loss Streak 22 | . . . . 2 1 . . 1 2 . 4 . 12 8 . 22 To Critical Strikes 2 | . . . . 1 . . . . . . . . . . . 1 Average Backups 14 | 5 8 12 17 13 13 12 12 12 12 14 13 14 8 12 13 10 Power 1 | . 2 2 1 . 1 1 1 1 . . . . . 1 2 . Propulsion 2 | 3 3 3 5 1 . 1 1 2 2 1 1 1 . 1 1 . Utility 4 | . 1 3 4 4 6 7 6 4 4 4 4 5 1 2 2 2 Weapon 4 | . 1 3 5 5 3 2 2 4 4 7 7 6 5 6 7 5 Tool/Special . | . . . . . . . . . . . . . . . . . Unused Backups 40 | . 1 1 22 7 . 1 4 . . 1 1 . . 1 . 1 Power 8 | . . . 6 . . . 1 . . 1 . . . . . . Propulsion 8 | . 1 1 5 . . . . . . . 1 . . . . . Utility 14 | . . . 6 3 . 1 3 . . . . . . . . 1 Weapon 9 | . . . 4 4 . . . . . . . . . 1 . . Tool/Special 1 | . . . 1 . . . . . . . . . . . . . Average Slot Usage (%) 88 | . 100 92 85 85 87 91 93 94 93 94 88 91 83 93 94 70 Engine 7 | . 14 14 13 2 5 5 4 . . . . . . . . . Core 2 | . . . . 7 5 5 5 5 5 5 5 5 . . . . Reactor 1 | . . . . . . . . 5 4 5 . 2 4 7 8 7 Treads 2 | . 28 18 . . . . . . . . . . . . . . Leg 15 | . . . 7 20 29 29 29 29 30 31 30 31 18 14 . . Wheel 7 | . . 10 17 3 . . . . . . . . . . . . Hover 1 | . . . . . . . . . . . . . 5 8 33 23 Device 10 | . 14 6 5 13 11 11 11 11 14 15 14 15 14 19 21 17 Storage 8 | . 14 14 13 5 5 5 5 5 5 5 5 5 5 4 4 3 Processor 5 | . . . . 7 11 11 11 11 10 10 10 10 14 14 13 11 Protection 2 | . . . . 3 5 5 5 5 5 5 5 4 1 . . . Energy Gun 4 | . . . 11 2 . . . . . . . . . . . . Ballistic Gun 8 | . 28 27 15 1 . . . . . . . . . . . . Impact Weapon 3 | . . . . . 5 5 7 10 9 10 9 10 9 3 . . Slashing Weapon 2 | . . . . 7 3 . . 4 5 4 5 5 5 13 13 5 Peak Build Rating 150 | 7 7 13 29 79 79 82 98 94 116 109 108 109 109 131 134 150 Average Rating 56 | 6 7 9 19 70 75 78 83 90 109 107 94 100 88 115 133 109 On Entrance 72 | . 7 7 13 29 76 74 82 91 91 107 108 95 109 93 122 134 Avg Prop Armor Cover (%) 5 | . . 10 3 8 3 . . 3 2 3 3 3 9 8 . 4 Naked Turns 120 | . . . 120 . . . . . . . . . . . . . Heaviest Build 206 | 11 11 206 206 82 78 87 93 93 91 91 85 85 89 80 62 72 Greatest Support 160 | 40 40 40 35 85 90 90 105 105 135 125 125 160 160 127 91 106 Greatest Overweight (x) 20 | 2 . 20 20 1 . . . 1 1 . . 1 4 1 . 1 Average Overweight (x) 1 | . . 4 3 . . . . . . . . . . . . . Largest Inventory Capacity 35 | 8 8 35 35 15 15 15 15 15 15 15 15 15 15 15 15 15 Average Capacity 18 | 7 8 22 24 15 15 15 15 15 15 15 15 15 15 15 15 13 Most Carried 34 | 8 8 31 34 15 15 15 15 15 15 15 15 15 15 15 14 14 Average Carried 16 | 5 8 15 23 14 14 14 14 14 14 14 14 15 9 13 13 10 Final Capacity 35 | 8 8 35 15 15 15 15 15 15 15 15 15 15 15 15 15 5 Final Carried 31 | 8 8 31 15 15 14 14 15 15 15 15 15 15 8 15 13 . Class Distribution -------------------- 37% | Scavenger-Gladiator 22% | Hauler-Mutant 16% | Mutant 9% | Derelict-Mutant 4% | Scavenger-Mutant 3% | Derelict-Gladiator Dominant Class ---------------- Mutant | -10/Materials Hauler-Mutant | -10/Subcaves Hauler-Mutant | -7/Scraptown Scavenger-Gladiator | -5/Factory Scavenger-Gladiator | -5/Upper Caves Scavenger-Gladiator | -5/Upper Caves Scavenger-Gladiator | -5/Warlord Scavenger-Gladiator | -4/Proximity Caves Scavenger-Gladiator | -4/Factory Scavenger-Gladiator | -4/Upper Caves Scavenger-Gladiator | -4/Upper Caves Scavenger-Gladiator | -4/Zhirov Gladiator | -3/Proximity Caves Derelict-Gladiator | -3/Research Scavenger-Sprinter | -2/Research Mutant | -1/Access Resources | -11 -10 -10 -7 -5 -5 -5 -5 -4 -4 -4 -4 -4 -3 -3 -2 -1 ----------- Run | Yrd Mat Sub Scr Fac Upp Upp War Pro Fac Upp Upp Zhi Pro Res Res Acc Matter Collected 3472 | 278 . 190 150 539 58 62 353 80 563 34 361 . 289 505 . 10 Remotely 160 | . . . . . . . . . . . . . . 160 . . Salvage Created 5960 | 43 . 133 . 994 397 44 445 98 1911 118 276 . 348 1143 . 10 Parts 226 | 8 . 11 . 56 16 2 15 4 40 1 6 . 5 61 . 1 Haulers Intercepted 5 | . . . . 1 . . . . 3 . . . . 1 . . Recyclers Shooed 1 | . . . . . . . . . . . . . . . . 1 Parts Field Recycled . | . . . . . . . . . . . . . . . . . Retrieved Matter . | . . . . . . . . . . . . . . . . . Parts Self-Destructed 41 | . . 21 . . 12 1 . . . . 3 . 4 . . . Prevented 3 | . . . . . 1 . . 2 . . . . . . . . Parts Restored . | . . . . . . . . . . . . . . . . . Kills | -11 -10 -10 -7 -5 -5 -5 -5 -4 -4 -4 -4 -4 -3 -3 -2 -1 ------- Run | Yrd Mat Sub Scr Fac Upp Upp War Pro Fac Upp Upp Zhi Pro Res Res Acc Combat Hostiles Destroyed 107 | . . 4 . 16 7 4 8 4 25 3 8 . 7 21 . . Melee 53 | . . . . 10 5 . . 2 14 . 2 . 4 16 . . Guns 8 | . . 2 . 6 . . . . . . . . . . . . Cannons 9 | . . . . . . . . . . . 4 . 1 4 . . AOE 21 | . . 2 . . . 4 8 1 3 2 1 . . . . . Classes Destroyed 20 | 1 . 2 . 7 1 . 3 . 3 1 1 . 1 . . . Worker 7 | . . . . . . . . . 6 . . . . . . 1 Tunneler 2 | 2 . . . . . . . . . . . . . . . . Hauler 5 | . . . . 1 . . . . 3 . . . . 1 . . Recycler 3 | . . . . . . . . . 3 . . . . . . . Operator 2 | . . . . 1 . . . . . . . . . 1 . . Watcher 1 | . . . . . . . . . 1 . . . . . . . Swarmer 35 | . . . . 5 . 4 . 1 7 . 5 . . 13 . . Grunt 26 | . . . . 1 . . 2 . 12 3 2 . 4 2 . . Duelist 1 | . . . . . . . . . . . 1 . . . . . Sentry 9 | . . . . 5 . . . 1 1 . . . . 2 . . Specialist 1 | . . . . . . . 1 . . . . . . . . . Hunter 6 | . . . . 1 2 . 3 . . . . . . . . . Programmer 18 | . . . . 4 1 . . 2 5 . . . 2 4 . . Behemoth 1 | . . . . . . . . . . . . . 1 . . . Executioner 2 | . . . . . . . 2 . . . . . . . . . Artisan 1 | . . 1 . . . . . . . . . . . . . . Subdweller 4 | . . 4 . . . . . . . . . . . . . . Thug 4 | . . . . . 1 . 2 . 1 . . . . . . . Savage 1 | . . . . . . . . . . 1 . . . . . . Fireman 3 | . . . . . 3 . . . . . . . . . . . Mutant 1 | . . . . . . . 1 . . . . . . . . . Best Kill Streak 9 | 1 . 1 . 5 4 4 6 3 7 2 5 . 4 9 . 1 Combat Bots Only 9 | . . 1 . 5 4 4 6 3 4 2 5 . 4 9 . . Max Kills in Single Turn 3 | 1 . 1 . 1 1 3 2 1 3 1 1 . 1 1 . 1 Gunslinging . | . . . . . . . . . . . . . . . . . Exploded 3 | . . 1 . . . 3 2 1 3 1 1 . . . . . Melee 1 | . . . . 1 1 . . 1 1 . 1 . 1 1 . . Uniques/NPCs Destroyed . | . . . . . . . . . . . . . . . . . Combat | -11 -10 -10 -7 -5 -5 -5 -5 -4 -4 -4 -4 -4 -3 -3 -2 -1 -------- Run | Yrd Mat Sub Scr Fac Upp Upp War Pro Fac Upp Upp Zhi Pro Res Res Acc Hostile Shots Fired 1401 | . . 22 . 131 49 6 6 55 150 21 38 . 171 185 3 564 Missed 444 | . . 9 . 31 15 3 1 18 62 10 10 . 48 48 2 187 Hits 957 | . . 13 . 100 34 3 5 37 88 11 28 . 123 137 1 377 Projectile 957 | . . 13 . 100 34 3 5 37 88 11 28 . 123 137 1 377 AOE 1 | . . . . . . . . . . . . . . . . 1 Critical Strikes 38 | . . . . 5 . . . 1 9 1 1 . 10 5 . 6 Part Disruptions 6 | . . . . 2 1 . . . . . . . 2 1 . . Actively Blocked 2 | . . . . . . . . . . . . . 2 . . . Damage Taken 16512 | . . 290 . 1897 440 50 140 795 1908 247 611 . 2661 3053 25 4395 Core 2968 | . . 36 . 230 29 . . 19 77 41 66 . 387 477 . 1606 Absorbed by Shields 469 | . . . . 109 72 . . . . . . . 288 . . . Redirected to Shielding 144 | . . . . 71 . . . . . . . . . 73 . . Regen/Repaired (Parts) 232 | . . . . 63 . . 169 . . . . . . . . . Core Remaining (%) 78 | 100 . . 85 . . . . 72 . . . . 50 63 100 . Volleys Fired 126 | 12 . 24 . 15 . 7 9 12 4 7 7 . 12 11 . 6 Largest 3 | 2 . 2 . 3 . 1 1 1 1 1 1 . 1 2 . 1 Hottest 182 | 40 . 45 . 182 . 81 43 43 47 43 47 . 100 147 . 105 Shots Fired 181 | 24 . 36 . 40 . 7 9 12 4 7 7 . 12 16 . 7 Gun 97 | 24 . 32 . 40 . . . . . . . . . . . 1 Cannon 43 | . . . . . . 4 . . 1 . 5 . 12 16 . 5 Launcher 40 | . . 4 . . . 3 9 12 3 7 2 . . . . . Special 1 | . . . . . . . . . . . . . . . . 1 Kinetic 93 | 24 . 32 . 14 . 3 . . 1 . 5 . . 11 . 3 Thermal 39 | . . . . 26 . . . . . . . . 5 5 . 3 Explosive 40 | . . 4 . . . 3 9 12 3 7 2 . . . . . Electromagnetic 1 | . . . . . . 1 . . . . . . . . . . Entropic 7 | . . . . . . . . . . . . . 7 . . . Robot Hit Streak 18 | 11 . 9 . 16 . 3 4 9 11 4 6 . 17 18 . 2 Robot Miss Streak 6 | 2 . 2 . 6 . . 2 2 2 1 . . 1 3 . . Penetration Max . | . . . . . . . . . . . . . . . . . Secondary Targets 1 | . . . . 1 . . . . . . . . . . . . Max Gunslinging Chain 1 | . . . . 1 . . . . . . . . . . . . Shots Hit Robots 395 | 20 . 28 . 68 20 3 3 31 82 14 14 . 41 60 . 11 Core Hits 178 | 5 . 12 . 30 5 3 31 7 25 9 9 . 10 31 . 1 Critical Kills 5 | . . . . . . . . . 5 . . . . . . . Critical Parts Destroyed 38 | . . . . . 3 . . 5 18 1 2 . 7 1 . 1 Critical Strikes 63 | . . . . 6 5 . . 6 24 1 3 . 10 5 . 3 Destroy 1 | . . . . . . . . . . . . . . . . 1 Blast 2 | . . . . . . . . . 1 . 1 . . . . . Smash 43 | . . . . . 3 . . 5 23 1 2 . 7 1 . 1 Sever 14 | . . . . 6 1 . . 1 . . . . 1 4 . 1 Impale 1 | . . . . . 1 . . . . . . . . . . . Sunder 2 | . . . . . . . . . . . . . 2 . . . Melee Attacks 400 | . . . . 67 29 . . 24 122 10 15 . 35 69 3 26 Impact 202 | . . . . 2 17 . . 20 103 9 11 . 31 6 . 3 Slashing 192 | . . . . 64 7 . . 4 19 1 4 . 4 63 3 23 Piercing 6 | . . . . 1 5 . . . . . . . . . . . Sneak Attacks 23 | . . . . 1 . . . . 8 6 . . 1 4 . 3 Combat Hostiles 4 | . . . . . . . . . . . . . 1 2 . 1 Follow-up Attacks 65 | . . . . 5 4 . . 7 16 1 3 . 6 21 . 2 Damage Inflicted 21855 | 160 . 416 . 2487 828 465 2242 1246 5578 1413 1128 . 2377 2836 . 679 Guns 916 | 160 . 190 . 539 . . . . . . . . . . . 27 Cannons 1230 | . . . . . . . . . 41 . 169 . 748 272 . . Explosions 5444 | . . 226 . . . 465 2242 295 1096 775 345 . . . . . Melee 14265 | . . . . 1948 828 . . 951 4441 638 614 . 1629 2564 . 652 Ramming . | . . . . . . . . . . . . . . . . . Kinetic 931 | 160 . 190 . 161 . . . . 41 . 169 . . 210 . . Thermal 1415 | . . . . 378 . . . . 654 . . . 294 62 . 27 Explosive 4790 | . . 226 . . . 465 2242 295 442 775 345 . . . . . Electromagnetic . | . . . . . . . . . . . . . . . . . Impact 8448 | . . . . 28 485 . . 797 4130 638 572 . 1508 198 . 92 Slashing 5732 | . . . . 1920 258 . . 154 311 . 42 . 121 2366 . 560 Piercing 85 | . . . . . 85 . . . . . . . . . . . Entropic 454 | . . . . . . . . . . . . . 454 . . . Highest Corruption 12 | . . . . 4 4 4 4 7 10 10 12 12 12 10 . 3 Average Corruption 7 | . . . . 2 4 4 4 5 6 10 11 12 12 9 . 2 Corruption Purged . | . . . . . . . . . . . . . . . . . Corruption Blocked . | . . . . . . . . . . . . . . . . . Effects 116 | . . . . 6 7 9 1 8 13 18 19 6 16 9 . 4 Message Errors 33 | . . . . 2 2 1 . 2 5 6 4 2 6 2 . 1 Matter Fused 30 | . . . . 1 2 3 1 3 . 3 8 2 6 1 . . Heat Flow Errors 13 | . . . . 2 . 3 . 2 . 2 3 . . 1 . . Energy Discharges 16 | . . . . . 2 . . 1 2 1 2 . 3 3 . 2 Parts Rejected 2 | . . . . . . . . . 1 . 1 . . . . . Data Loss (minor) 11 | . . . . 1 . 1 . . 3 2 . 2 1 1 . . Data Loss (major) 6 | . . . . . 1 1 . . 2 . 1 . . 1 . . Misfires 1 | . . . . . . . . . . . . . . . . 1 Alerts 3 | . . . . . . . . . . 3 . . . . . . Misdirections 1 | . . . . . . . . . . 1 . . . . . . Overload Shots . | . . . . . . . . . . . . . . . . . Overflow Damage 3442 | . . . . 50 217 83 69 244 1687 102 257 . 455 89 . 189 Projectiles 12 | . . . . . . . . . . . . . . 12 . . Explosions 379 | . . . . . . 83 69 . 151 26 50 . . . . . Melee 3051 | . . . . 50 217 . . 244 1536 76 207 . 455 77 . 189 Knockbacks 35 | . . . . . 2 . . . 19 1 4 . 7 2 . . Impact 30 | . . . . . 1 . . . 18 1 3 . 6 1 . . Kinetic 3 | . . . . . . . . . 1 . 1 . . 1 . . Secondary 2 | . . . . . 1 . . . . . . . 1 . . . Self-Inflicted Damage 251 | . . . . . . . 44 15 183 . 9 . . . . . Shots 7 | . . . . . . . 2 1 3 . 1 . . . . . Rammed . | . . . . . . . . . . . . . . . . . Targets Rammed . | . . . . . . . . . . . . . . . . . Kicked . | . . . . . . . . . . . . . . . . . Crushed . | . . . . . . . . . . . . . . . . . Highest Temperature 489 | . . . . 489 11 204 2 305 369 254 195 . 232 132 . 51 Average Temperature 98 | . . . . 205 11 70 2 58 168 104 82 . 56 56 . 24 Received Heat Transfer 2080 | . . 63 . 273 165 . 36 72 338 42 18 . 663 374 . 36 Effects 7 | . . . . 5 . 1 . 1 . . . . . . . . Shutdowns 3 | . . . . 3 . . . . . . . . . . . . Energy Bleed 2 | . . . . 1 . 1 . . . . . . . . . . Short Circuit 2 | . . . . 1 . . . 1 . . . . . . . . Siege Activations . | . . . . . . . . . . . . . . . . . Martial Activations . | . . . . . . . . . . . . . . . . . Shielding Activations 2 | . . . . . . . . . 2 . . . . . . . Total Turns 20 | . . . . . . . . . 20 . . . . . . . Longest Duration 16 | . . . . . . . . . 16 . . . . . . . Robots Disrupted . | . . . . . . . . . . . . . . . . . Combat Hostiles . | . . . . . . . . . . . . . . . . . Robots Corrupted 20 | . . . . . 2 . . 1 11 2 1 . 2 1 . . Combat Hostiles 16 | . . . . . 2 . . 1 8 1 1 . 2 1 . . Parts Fried 31 | . . . . . 4 . . . 22 . 3 . 1 1 . . Impact Corruptions 105 | . . . . . 8 . . 11 53 5 6 . 18 2 . 2 Robots Melted . | . . . . . . . . . . . . . . . . . Combat Hostiles . | . . . . . . . . . . . . . . . . . Parts Melted 5 | . . 1 . 2 . . 2 . . . . . . . . . Heat Transferred 1601 | . . . . 759 . . . . 400 . . . 350 75 . 17 Parts Sabotaged . | . . . . . . . . . . . . . . . . . Parts Stolen . | . . . . . . . . . . . . . . . . . Parts Stripped . | . . . . . . . . . . . . . . . . . Power Chain Reactions 1 | . . . . . . . . . 1 . . . . . . . Alert | -11 -10 -10 -7 -5 -5 -5 -5 -4 -4 -4 -4 -4 -3 -3 -2 -1 ------- Run | Yrd Mat Sub Scr Fac Upp Upp War Pro Fac Upp Upp Zhi Pro Res Res Acc Maximum Alert Level 1 | . . . . . . . . . 1 . . . . 1 . . Low Security (%) 94 | 100 100 . . 100 . . . . 87 . . . . 91 100 100 Level 1 5 | . . . . . . . . . 12 . . . . 8 . . Level 2 . | . . . . . . . . . . . . . . . . . Level 3 . | . . . . . . . . . . . . . . . . . Level 4 . | . . . . . . . . . . . . . . . . . Level 5 . | . . . . . . . . . . . . . . . . . High Security . | . . . . . . . . . . . . . . . . . Max Security . | . . . . . . . . . . . . . . . . . Peak Influence 389 | 5 5 . . 109 . . . . 389 . . . . 222 43 90 Initial 38 | . . . . . . . . . . . . . . . 38 16 Average 54 | . . . . 33 . . . . 105 . . . . 63 36 19 Influence Increases 3176 | 10 5 . . 519 60 90 160 90 930 60 200 . 170 583 21 278 Destroy 0b10 Robot/C 1980 | . . . . 320 60 80 160 80 500 60 160 . 140 420 . . Destroy 0b10 Robot/NC 105 | 10 . . . 10 . . . . 65 . 5 . . 10 . 5 Destroy Leader 332 | . . . . 92 . 10 . 10 98 . 20 . 30 72 . . Successful Hack 110 | . 5 . . 52 . . . . 39 . . . . 14 . . Disable Machine 90 | . . . . . . . . . 60 . . . . 15 . 15 Destroy Structure 199 | . . . . 30 . . . . 108 . . . . 22 6 33 Partial Spotted 30 | . . . . . . . . . . . . . . 15 15 . Lose Combat Pursuer 330 | . . . . 15 . . . . 60 . 15 . . 15 . 225 Influence Decreases 3176 | 10 5 . . 452 127 70 44 226 553 371 266 . 170 515 60 307 Entered New Map 379 | . . . . . 26 . 20 136 . 141 13 . . . 30 13 Time Decay 1874 | 10 5 . . 336 101 70 24 80 343 230 203 . 100 232 30 110 Lost Part 555 | . . . . 40 . . . 10 60 . 50 . 70 141 . 184 Purge Threat 368 | . . . . 76 . . . . 150 . . . . 142 . . Squads Dispatched 15 | . . . . 5 . . . . 4 . . . . 3 1 2 Investigation 3 | . . . . 1 . . . . . . . . . . 1 1 Extermination 7 | . . . . 2 . . . . 2 . . . . 2 . 1 Reinforcement 4 | . . . . 1 . . . . 2 . . . . 1 . . Assault . | . . . . . . . . . . . . . . . . . Garrison 1 | . . . . 1 . . . . . . . . . . . . Intercept . | . . . . . . . . . . . . . . . . . Searches Triggered . | . . . . . . . . . . . . . . . . . Construction Impeded . | . . . . . . . . . . . . . . . . . Haulers Reinforced 2 | . . . . . . . . . 2 . . . . . . . Active Scanning Responses . | . . . . . . . . . . . . . . . . . Cargo Convoy Interrupts . | . . . . . . . . . . . . . . . . . Stealth | -11 -10 -10 -7 -5 -5 -5 -5 -4 -4 -4 -4 -4 -3 -3 -2 -1 --------- Run | Yrd Mat Sub Scr Fac Upp Upp War Pro Fac Upp Upp Zhi Pro Res Res Acc Distress Signals 3 | . . . . 1 . . 1 . 1 . . . . . . . Communications Jammed 2 | . . . . . . . . . . . . . . . . 2 Distress Signals 2 | . . . . . . . . . . . . . . . . 2 Times Spotted 168 | . . 8 . 20 7 4 13 5 37 5 8 . 7 28 1 25 Peak Tracking Total 9 | . . 2 . 4 4 4 9 3 6 4 5 . 5 5 1 9 Tactical Retreats 13 | . . . . 1 . . . . 4 . 1 . . 1 . 6 ECM-based Alert Blocks 1 | . . . . . . . . . . . . . . . . 1 Traps | -11 -10 -10 -7 -5 -5 -5 -5 -4 -4 -4 -4 -4 -3 -3 -2 -1 ------- Run | Yrd Mat Sub Scr Fac Upp Upp War Pro Fac Upp Upp Zhi Pro Res Res Acc Traps Triggered 1 | . . . . . . . . . . . 1 . . . . . Indirectly . | . . . . . . . . . . . . . . . . . Trap Hack Attempts . | . . . . . . . . . . . . . . . . . Triggered . | . . . . . . . . . . . . . . . . . Disarmed . | . . . . . . . . . . . . . . . . . Reprogrammed . | . . . . . . . . . . . . . . . . . Reused . | . . . . . . . . . . . . . . . . . Traps Extracted . | . . . . . . . . . . . . . . . . . Installed . | . . . . . . . . . . . . . . . . . Triggered . | . . . . . . . . . . . . . . . . . Machines | -11 -10 -10 -7 -5 -5 -5 -5 -4 -4 -4 -4 -4 -3 -3 -2 -1 ---------- Run | Yrd Mat Sub Scr Fac Upp Upp War Pro Fac Upp Upp Zhi Pro Res Res Acc Machines Disabled 7 | . . . . . 1 . . . 4 . . . . 1 . 1 Max in Single Turn 4 | . . . . . 1 . . . 4 . . . . 1 . 1 Garrison Access 2 | . . . . 1 . . . . . . . . . 1 . . Machines Repaired . | . . . . . . . . . . . . . . . . . Machines Dismantled . | . . . . . . . . . . . . . . . . . Machines Sabotaged . | . . . . . . . . . . . . . . . . . Overloaded Fab Kills . | . . . . . . . . . . . . . . . . . Hacking | -11 -10 -10 -7 -5 -5 -5 -5 -4 -4 -4 -4 -4 -3 -3 -2 -1 --------- Run | Yrd Mat Sub Scr Fac Upp Upp War Pro Fac Upp Upp Zhi Pro Res Res Acc Machines Accessed 45 | . 1 . 9 9 1 . 5 . 4 1 1 5 . 3 2 4 Terminals 14 | . 1 . . 4 . . . . 2 . 1 . . 2 1 3 Fabricators . | . . . . . . . . . . . . . . . . . Repair Stations 1 | . . . . 1 . . . . . . . . . . . . Recycling Units 2 | . . . . 1 . . . . 1 . . . . . . . Scanalyzers 3 | . . . . 2 . . . . 1 . . . . . . . Garrison Access 4 | . . . . 1 . . . . . . . . . 1 1 1 Total Hacks 164 | . 2 . 84 19 1 . 9 . 11 1 1 18 . 7 4 7 Successful 133 | . 2 . 84 10 1 . 9 . 3 1 1 18 . 3 1 . Failed 31 | . . . . 9 . . . . 8 . . . . 4 3 7 Catastrophic 11 | . . . . 4 . . . . 3 . . . . . 1 3 Database Lockouts . | . . . . . . . . . . . . . . . . . Manual 12 | . . . . 2 . . 1 . 5 . . . . 2 2 . Terminals 29 | . 2 . . 9 . . . . 6 . 1 . . 5 2 4 Fabricators . | . . . . . . . . . . . . . . . . . Repair Stations 2 | . . . . 2 . . . . . . . . . . . . Recycling Units 3 | . . . . 2 . . . . 1 . . . . . . . Scanalyzers 9 | . . . . 5 . . . . 4 . . . . . . . Garrison Access 8 | . . . . 1 . . . . . . . . . 2 2 3 Terminal Hacks 123 | . 2 . 84 3 1 . 9 . 2 1 1 18 . 2 . . Record 91 | . . . 76 . . . 7 . . . 1 6 . 1 . . Part Schematic 4 | . . . . . . . . . . . . 4 . . . . Robot Analysis 12 | . . . 8 . . . . . . . . 4 . . . . Prototype ID Bank 5 | . 1 . . . . . . . . . . 4 . . . . Open Door 4 | . . . . . 1 . 2 . . 1 . . . . . . Branch Access Points 2 | . . . . 1 . . . . 1 . . . . . . . Unreport Threat 3 | . . . . 1 . . . . 1 . . . . 1 . . Hauler Manifests 2 | . 1 . . 1 . . . . . . . . . . . . Fabricator Hacks . | . . . . . . . . . . . . . . . . . Repair Station Hacks 2 | . . . . 2 . . . . . . . . . . . . Scan Component 1 | . . . . 1 . . . . . . . . . . . . Repair 1 | . . . . 1 . . . . . . . . . . . . Recycling Unit Hacks . | . . . . . . . . . . . . . . . . . Scanalyzer 5 | . . . . 4 . . . . 1 . . . . . . . Retrieve Study 5 | . . . . 4 . . . . 1 . . . . . . . Garrison Access Hacks 2 | . . . . 1 . . . . . . . . . 1 . . Seal Access 2 | . . . . 1 . . . . . . . . . 1 . . Unauthorized Hacks 1 | . . . . . . . . . . . . . . . 1 . Terminals 1 | . . . . . . . . . . . . . . . 1 . Botnet 1 | . . . . . . . . . . . . . . . 1 . Fabricators . | . . . . . . . . . . . . . . . . . Repair Stations . | . . . . . . . . . . . . . . . . . Recycling Units . | . . . . . . . . . . . . . . . . . Scanalyzers . | . . . . . . . . . . . . . . . . . Garrison Access . | . . . . . . . . . . . . . . . . . Data Cores Recovered 1 | . . . . . . . . . . . . . . 1 . . Used 1 | . . . . . . . . . . . . . . 1 . . Hacking Detections 20 | . . . . 7 . . . . 4 . 1 . . 2 2 4 Full Trace Events 3 | . . . . 1 . . . . . . . . . . 1 1 Feedback Events . | . . . . . . . . . . . . . . . . . Feedback Blocked . | . . . . . . . . . . . . . . . . . Robot Schematics Acquired . | . . . . . . . . . . . . . . . . . Robots Built . | . . . . . . . . . . . . . . . . . Authchips . | . . . . . . . . . . . . . . . . . Time . | . . . . . . . . . . . . . . . . . Total Robot Build Rating . | . . . . . . . . . . . . . . . . . Part Schematics Acquired 4 | . . . . . . . . . . . . 4 . . . . Parts Built . | . . . . . . . . . . . . . . . . . Authchips . | . . . . . . . . . . . . . . . . . Time . | . . . . . . . . . . . . . . . . . Total Part Build Rating . | . . . . . . . . . . . . . . . . . Part Studies Acquired 5 | . . . . 4 . . . . 1 . . . . . . . Parts Repaired 1 | . . . . 1 . . . . . . . . . . . . Time 22 | . . . . 22 . . . . . . . . . . . . Parts Recycled . | . . . . . . . . . . . . . . . . . Recycled Matter . | . . . . . . . . . . . . . . . . . Retrieved Matter . | . . . . . . . . . . . . . . . . . Retrieved Components . | . . . . . . . . . . . . . . . . . Parts Scanalyzed . | . . . . . . . . . . . . . . . . . Part Schematics Acquired . | . . . . . . . . . . . . . . . . . Parts Damaged . | . . . . . . . . . . . . . . . . . Bothacking | -11 -10 -10 -7 -5 -5 -5 -5 -4 -4 -4 -4 -4 -3 -3 -2 -1 ------------ Run | Yrd Mat Sub Scr Fac Upp Upp War Pro Fac Upp Upp Zhi Pro Res Res Acc Used RIF Installer . | . . . . . . . . . . . . . . . . . Robots Hacked . | . . . . . . . . . . . . . . . . . Non-combat . | . . . . . . . . . . . . . . . . . Combat . | . . . . . . . . . . . . . . . . . Robot Hacks Applied . | . . . . . . . . . . . . . . . . . Relay Couplers Released 1 | . . . . . . . . . . . . . . 1 . . Machine Destruction 1 | . . . . . . . . . . . . . . 1 . . Fabnet Peak Effective % . | . . . . . . . . . . . . . . . . . Robots Rewired . | . . . . . . . . . . . . . . . . . Allies Hacked . | . . . . . . . . . . . . . . . . . Hacks Repelled . | . . . . . . . . . . . . . . . . . Allies | -11 -10 -10 -7 -5 -5 -5 -5 -4 -4 -4 -4 -4 -3 -3 -2 -1 -------- Run | Yrd Mat Sub Scr Fac Upp Upp War Pro Fac Upp Upp Zhi Pro Res Res Acc Total Allies . | . . . . . . . . . . . . . . . . . Largest Group . | . . . . . . . . . . . . . . . . . Highest-Rated Group . | . . . . . . . . . . . . . . . . . Highest-Rated Ally . | . . . . . . . . . . . . . . . . . Initial UFD Resources 49 | . . . . 37 37 37 37 41 41 41 41 41 45 45 47 49 Total Orders . | . . . . . . . . . . . . . . . . . Ally Attacks . | . . . . . . . . . . . . . . . . . Total Damage . | . . . . . . . . . . . . . . . . . Kills . | . . . . . . . . . . . . . . . . . Allies Corrupted . | . . . . . . . . . . . . . . . . . Allies Melted . | . . . . . . . . . . . . . . . . . Intel | -11 -10 -10 -7 -5 -5 -5 -5 -4 -4 -4 -4 -4 -3 -3 -2 -1 ------- Run | Yrd Mat Sub Scr Fac Upp Upp War Pro Fac Upp Upp Zhi Pro Res Res Acc Active Infowar (turns) 8434 | 190 132 636 2002 923 353 347 907 274 747 488 424 221 328 131 67 264 Sensors 1196 | . . . 590 408 . . . . . . . . . . . 198 IFF 4430 | . . . . 579 353 347 907 274 747 488 423 217 95 . . . Structural 1653 | . . . . . . . . 183 60 337 422 221 327 103 . . Seismic 2618 | 190 132 636 1412 248 . . . . . . . . . . . . Jamming 359 | . . . . . . . . . . . . . . 28 67 264 ECM 50 | . . . . . . . . . . . . . . . . 50 Robot Analysis Total 12 | . . . 8 . . . . . . . . 4 . . . . Derelict Logs Recovered 7 | . . . 5 . 1 . . . . . 1 . . . . . Drone Launches . | . . . . . . . . . . . . . . . . . Drone Recoveries . | . . . . . . . . . . . . . . . . . Exploration | -11 -10 -10 -7 -5 -5 -5 -5 -4 -4 -4 -4 -4 -3 -3 -2 -1 ------------- Run | Yrd Mat Sub Scr Fac Upp Upp War Pro Fac Upp Upp Zhi Pro Res Res Acc Turns Passed 13431 | 278 132 1326 4671 1214 390 347 912 348 1058 488 478 221 432 757 67 312 Spaces Moved 8843 | 146 46 616 2842 722 299 302 795 203 603 355 363 168 248 513 170 452 Core 291 | 8 . . 283 . . . . . . . . . . . . . Treads 545 | 138 46 358 . . . . . . . . . . . 3 . . Legs 4875 | . . . 631 563 299 302 795 203 603 355 363 168 246 347 . . Wheels 2345 | . . 258 1928 159 . . . . . . . . . . . . Hover 787 | . . . . . . . . . . . . . 2 163 170 452 Flight . | . . . . . . . . . . . . . . . . . Fastest Speed 29 | 50 160 160 50 100 108 108 108 108 108 121 107 107 111 40 32 29 Average Speed 130 | 157 160 199 161 116 108 108 108 122 119 121 107 108 121 100 32 42 Slowest Speed 560 | 160 160 560 380 196 108 108 111 178 178 121 121 173 330 225 32 103 Overloaded Moves . | . . . . . . . . . . . . . . . . . Propulsion Burnouts . | . . . . . . . . . . . . . . . . . Robots Hopped . | . . . . . . . . . . . . . . . . . Potential Cave-ins 3 | . . . . . . . 3 . . . . . . . . . Cave-ins Triggered . | . . . . . . . . . . . . . . . . . Exploration Rate (%) 38 | 7 10 34 94 17 52 58 91 35 16 61 47 62 46 11 7 12 Regions Visited 16 Branch Regions 10 Pre-discovered Areas 9 | . . . 4 . 1 . . . . . 1 3 . . . . Known Exits Taken 7 | . . . 1 1 1 . 1 1 1 . . . 1 . . . Unknown Exits Taken 9 | 1 1 1 . . . 1 . . . 1 1 1 . 1 1 . Scrap Searched 17 | . . . 6 . 1 3 . 2 . 1 3 . 1 . . . Spaces Dug 46 | . . . . 14 1 2 . . 10 1 1 . . 5 2 10 Terrain Destroyed 361 | . . 17 . 14 1 13 65 55 58 93 20 . 1 11 2 11 Melee 44 | . . . . 14 1 . . . 10 1 1 . . 5 2 10 Projectile 13 | . . . . . . 2 . . . . 3 . 1 6 . 1 AOE 304 | . . 17 . . . 11 65 55 48 92 16 . . . . . Terrain Rammed . | . . . . . . . . . . . . . . . . . Walls Destroyed . | . . . . . . . . . . . . . . . . . Machines Disabled . | . . . . . . . . . . . . . . . . . Actions | -11 -10 -10 -7 -5 -5 -5 -5 -4 -4 -4 -4 -4 -3 -3 -2 -1 --------- Run | Yrd Mat Sub Scr Fac Upp Upp War Pro Fac Upp Upp Zhi Pro Res Res Acc Total 10061 | 172 105 683 2934 955 328 314 839 260 781 386 423 205 307 662 178 529 Wait 233 | . 58 . 1 54 . . 1 10 41 4 25 . 4 10 2 23 Move 8827 | 145 45 615 2841 721 298 301 794 202 602 354 362 167 247 512 169 452 Hop . | . . . . . . . . . . . . . . . . . Pick Up 156 | 8 1 28 42 24 1 1 4 3 11 1 4 1 1 23 1 2 Fast Attach 112 | 7 . 2 6 24 . . 8 1 9 2 3 11 7 27 . 5 Attach 71 | . . . 8 14 2 1 1 1 8 . 3 . 8 11 2 12 Detach 8 | . . . 1 3 . . 2 1 . . . . . 1 . . Swap 86 | . . 8 4 11 4 3 5 10 13 4 6 . 4 9 1 4 Drop 133 | . 1 6 31 33 2 1 15 3 8 3 2 10 . 14 1 3 Fire 126 | 12 . 24 . 15 . 7 9 12 4 7 7 . 12 11 . 6 Melee 289 | . . . . 56 21 . . 17 85 9 9 . 24 44 2 22 Ram . | . . . . . . . . . . . . . . . . . Kick . | . . . . . . . . . . . . . . . . . Crush . | . . . . . . . . . . . . . . . . . Escape Stasis . | . . . . . . . . . . . . . . . . . Rewire 20 | . . . . . . . . . . 2 2 16 . . . . Trap . | . . . . . . . . . . . . . . . . . Miscellaneous . | . . . . . . . . . . . . . . . . . Route ------- -11/Scrapyard -10/Materials -10/Subcaves (discovered 2 exits: [*Mat] / *Scr) -7/Scraptown (discovered 2 exits: *Fac x2) -5/Factory (discovered 4 exits: Fac x2 / *Upp x2) -5/Upper Caves -5/Upper Caves (discovered 2 exits: Fac / *War) -5/Warlord -4/Proximity Caves -4/Factory (discovered 2 exits: *Upp x2) -4/Upper Caves -4/Upper Caves (discovered 2 exits: *Res / *Zhi) -4/Zhirov -3/Proximity Caves -3/Research (discovered 3 exits: *Res / Arm / Qua) -2/Research -1/Access History --------- Turn | Location | Event 18 | -11/Scrapyard | Discovered new exit (range 15) 279 | -11/Scrapyard | Entered Materials 280 | -10/Materials | Met a group of wandering Federalists 315 | -10/Materials | Build established: Mutant 340 | -10/Materials | Discovered new exit (range 9) 411 | -10/Materials | Entered Subcaves 411 | -10/Subcaves | Accompanied by 2 allies 412 | -10/Subcaves | Continued accompanying wandering Federalists (5) 533 | -10/Subcaves | Lost 3 allies 648 | -10/Subcaves | Wandering Federalist uncovered a shortcut to Scraptown 1356 | -10/Subcaves | Build established: Hauler-Mutant 1409 | -10/Subcaves | Discovered new exit (range 8) 1502 | -10/Subcaves | Lost 4 allies 1737 | -10/Subcaves | Entered Scraptown 1956 | -7/Scraptown | Received an X-ray algorithm 1970 | -7/Scraptown | Visited UFD Registry 1970 | -7/Scraptown | Registered with UFD as "Metalblaster" 1993 | -7/Scraptown | Visited Observation Area 2083 | -7/Scraptown | Visited Cave Peace 2142 | -7/Scraptown | Visited Red Mages 2225 | -7/Scraptown | Visited Cyclists 2254 | -7/Scraptown | Entered Cyclist Reading Room 2322 | -7/Scraptown | Visited The Evicted 2374 | -7/Scraptown | Visited TADAMA 2449 | -7/Scraptown | Visited Analyses Database 2494 | -7/Scraptown | Visited Junk Repository 2529 | -7/Scraptown | Visited Science Testing Area 2568 | -7/Scraptown | Visited Cartography Club 2631 | -7/Scraptown | Visited Derelict Rescue Squad 2659 | -7/Scraptown | Visited Scrap Suit Storage 2736 | -7/Scraptown | Visited Curators Association 2760 | -7/Scraptown | Visited Scrapoid Pod Storage 3003 | -7/Scraptown | Heard Great Nut preacher, LISTEN AND RECITE! 3493 | -7/Scraptown | Scanned Subdweller tech in exchange for log data 3503 | -7/Scraptown | Learned Factory garrison access intel 3505 | -7/Scraptown | Learned location of Extension (-6) 3507 | -7/Scraptown | Learned location of 1 exit from Research 3509 | -7/Scraptown | Learned Factory stockpile data 3510 | -7/Scraptown | Learned location of 1 exit from Factory 3532 | -7/Scraptown | Discovered new exit (range 11) 3570 | -7/Scraptown | Guru changed UFD alias to "Thermosplitter" 4166 | -7/Scraptown | Found DRS Beacon 4185 | -7/Scraptown | Visited DA-N13 Charitable Foundation 4189 | -7/Scraptown | Found DCF Scrap (30 items) 4343 | -7/Scraptown | Build established: Mutant 4405 | -7/Scraptown | Learned location of Warlord (-5) 4405 | -7/Scraptown | Learned location of Quarantine (-3) 4405 | -7/Scraptown | Learned 8 Materials zone layouts 4405 | -7/Scraptown | Learned 12 Materials zone layouts 4405 | -7/Scraptown | Learned 4 Access zone layouts 4405 | -7/Scraptown | Learned 4 Recycling zone layouts 4405 | -7/Scraptown | Learned 12 Lower Caves zone layouts 4405 | -7/Scraptown | Learned 16 Lower Caves zone layouts 4405 | -7/Scraptown | Learned 12 Upper Caves zone layouts 4405 | -7/Scraptown | Learned 24 Upper Caves zone layouts 4405 | -7/Scraptown | Learned 16 Proximity Caves zone layouts 4405 | -7/Scraptown | Learned Factory emergency access door positions 4405 | -7/Scraptown | Learned location of 1 exit from Lower Caves 4405 | -7/Scraptown | Learned location of 3 exits from Lower Caves 4405 | -7/Scraptown | Learned location of 3 exits from Proximity Caves 4405 | -7/Scraptown | Identified exit to Factory 4411 | -7/Scraptown | Found Deep Structural Scanner 4801 | -7/Scraptown | Build established: Derelict-Mutant 6107 | -7/Scraptown | Build established: Mutant 6328 | -7/Scraptown | Met Optimus 6328 | -7/Scraptown | Accepted into 0bPrime 6408 | -7/Scraptown | Entered Factory 6408 | -5/Factory | Evolved 10 slots: Power x1, Propulsion x3, Utility x5, Weapon x1 6409 | -5/Factory | Identified exit to Factory 6413 | -5/Factory | Loaded intel: 4 garrison access locations 6542 | -5/Factory | Identified exit to Upper Caves 6750 | -5/Factory | Garrison activated, responded to threat 7063 | -5/Factory | Build established: Scavenger-Gladiator 7351 | -5/Factory | Repaired Greatsword+ 7622 | -5/Factory | Entered Upper Caves 7623 | -5/Upper Caves | Identified exit to Upper Caves 7725 | -5/Upper Caves | Ambushed by research squad 7865 | -5/Upper Caves | Ambushed by wild Derelicts 7943 | -5/Upper Caves | Entered a destroyed Warlord outpost 8012 | -5/Upper Caves | Entered another Upper Caves area 8123 | -5/Upper Caves | Spotted B-75 Beast 8348 | -5/Upper Caves | Discovered new exit (range 10) 8359 | -5/Upper Caves | Entered Warlord 8360 | -5/Warlord | Identified exit to Proximity Caves 8406 | -5/Warlord | System corruption cleaned by Quarantine Array 8541 | -5/Warlord | Build established: Scavenger-Mutant 8600 | -5/Warlord | Ran an X-ray algorithm 8695 | -5/Warlord | Visited the Vortex Lab 8707 | -5/Warlord | Found Prototype Energy Cannon 8707 | -5/Warlord | Identified Vortex Cannon 8711 | -5/Warlord | Found Vortex Cannon 8712 | -5/Warlord | Warlord's base attacked by MAIN.C 8761 | -5/Warlord | Rebuked by Warlord 9001 | -5/Warlord | Build established: Scavenger-Gladiator 9024 | -5/Warlord | Opened side exit 9062 | -5/Warlord | Warlord forces counterattacked 9171 | -5/Warlord | Found Prototype Ballistic Cannon 9171 | -5/Warlord | Identified Hvy. Autocannon 9183 | -5/Warlord | Spotted Executioner 9184 | -5/Warlord | Destroyed Executioner 9242 | -5/Warlord | Destroyed Executioner 9271 | -5/Warlord | Entered Proximity Caves 9275 | -4/Proximity Caves | Lost 20 allies 9368 | -4/Proximity Caves | Attracted the attention of an 0b10 checkpoint 9619 | -4/Proximity Caves | Entered Factory 9619 | -4/Factory | Evolved 2 slots: Propulsion x1, Utility x1 10000 | -4/Factory | Identified exit to Upper Caves 10504 | -4/Factory | System corruption reached 10% 10510 | -4/Factory | Allied Derelicts emerged from ambush trap array 10677 | -4/Factory | Entered Upper Caves 10733 | -4/Upper Caves | Encountered a Warlord checkpoint 11089 | -4/Upper Caves | Discovered new exit (range 8) 11137 | -4/Upper Caves | Spotted B-86 Titan 11165 | -4/Upper Caves | Entered another Upper Caves area 11198 | -4/Upper Caves | Discovered new exit (range 17) 11225 | -4/Upper Caves | Lost 4 parts (1p2n1w) 11384 | -4/Upper Caves | Learned location of Armory (-3) 11634 | -4/Upper Caves | Discovered new exit (range 9) 11643 | -4/Upper Caves | Entered Zhirov 11643 | -4/Zhirov | Discovered new exit (range 3) 11663 | -4/Zhirov | Met Zhirov 11683 | -4/Zhirov | Learned location of Testing (-2) 11683 | -4/Zhirov | Learned location of Command (-1) 11704 | -4/Zhirov | Zhirov requested help retrieving the SGEMP Prototype 11726 | -4/Zhirov | Found Alien Artifact 11726 | -4/Zhirov | Identified Integrated Reactor 11726 | -4/Zhirov | Installed Integrated Reactor, increased core energy generation (+10) 11864 | -4/Zhirov | Entered Proximity Caves 11864 | -3/Proximity Caves | Spotted B-86 Titan 11865 | -3/Proximity Caves | Identified exit to Research 11962 | -3/Proximity Caves | Destroyed B-86 Titan 11981 | -3/Proximity Caves | Lost 12 parts (1p4n5u2w) 12175 | -3/Proximity Caves | Build established: Gladiator 12296 | -3/Proximity Caves | Entered Research 12296 | -3/Research | Evolved 2 slots: Utility x1, Weapon x1 12297 | -3/Research | Identified exit to Quarantine 12298 | -3/Research | Identified exit to Armory 12524 | -3/Research | Destroyed 9 combat bots 12529 | -3/Research | Lost 5 parts (2p1n1u1w) 12576 | -3/Research | Build established: Derelict-Gladiator 12756 | -3/Research | Lost 8 parts (1p5n2u) 12873 | -3/Research | System corruption reached 10% 12916 | -3/Research | Lost 6 parts (2p2n2u) 13012 | -3/Research | Lost 3 parts (2n1u) 13043 | -3/Research | Discovered new exit (range 4) 13053 | -3/Research | Entered another Research area 13053 | -2/Research | Evolved 2 slots: Propulsion x2 13117 | -2/Research | Discovered new exit (range 8) 13120 | -2/Research | Entered Access 13120 | -1/Access | Evolved 2 slots: Power x1, Propulsion x1 13333 | -1/Access | Spotted B-99 Colossus 13336 | -1/Access | Lost 11 parts (2p7n2w) 13377 | -1/Access | Spotted B-99 Colossus 13408 | -1/Access | Attached CPS modules to B-99 Colossus 13416 | -1/Access | Core integrity fell below 50% 13427 | -1/Access | Core integrity fell below 20% 13432 | -1/Access | Destroyed by B-99 Colossus with Multirail Last Messages --------------- 13425_ Knocked back. 13425_ Penetrated by Slug. 13425_ Slug penetrates Sealed Heavy Doors. 13425_ Penetrated by Slug. 13425_ Slug penetrates Sealed Heavy Doors. 13425_ Penetrated by Slug. 13425_ Slug penetrates Sealed Heavy Doors. 13426_ Penetrated by Slug. 13427_ Slug penetrates Sealed Heavy Doors. 13427_ Gyrokinetic Inverter destroyed. 13427_ Slug penetrates Sealed Heavy Doors. 13427_ Penetrated by Slug. 13427_ Slug penetrates Sealed Heavy Doors. 13427_ Penetrated by Slug. 13428_ Slug penetrates Sealed Heavy Doors. 13429_ Penetrated by Slug. 13429_ Slug penetrates Sealed Heavy Doors. 13429_ Penetrated by Slug. 13429_ Slug penetrates Sealed Heavy Doors. 13432_ Penetrated by Slug. Map ----- +----------------------------------------------------+ | ?????????????????????????????????????????????????? | | ?????????????????????????????????????????????????? | | ?????????????????????????????????????????????????? | | ?????????????????????????????????????????????????? | | ?????????????????????????????????????????????????? | | ?????????????????????????????????????????????????? | | ?????????????????????????????????????????????????? | | ?????????????????????????????????????????????????? | | ?????????????????????????????????????????????????? | | ?????????????????????????????????????????????????? | | ?????????????????????????????????????????????????? | | ?????????????????????????????????????????????????? | | ?????????????????????????????????????????????????? | | ?????????????????????????????????????????????????? | | ?????????????????????????????????????????????????? | | ?????????????????????????????????????????????????? | | ?????????????????????????????????????????????????? | | ?????????????????????????????????????????????????? | | ?????????????????????????????????????????????????? | | ?????????????????????????????????????????????????? | | ?????????????????????????????????????????????????? | | ####?????????????????????????????????????????????? | | #?????????????????????????????????????????????? | | #?????????????????????????????????????????????? | | #????????????????????"""??????????????????????? | | #????????????????????"@"""????????????????????? | | " #?????????????????#""""! """"#????????????????? | | "" #?????????????????# % !* #????????????????? | | """#?????????????????# % BB #????????????????? | | " #?????????????????# % BB #????????????????? | | #??????????????##?# #????????????????? | | #??????????????# ?# #????????????????? | | #??????######### ## % #????????????????? | | #??????# ## # ! #????????????????? | | ####??????#" # #### %=####????????????????? | | #?????????## # = #???????????????????? | | #?????????# #^ #???????????????????? | | #?????????# + #???????????????????? | | #?????????# # #???????????????????? | | ########### #% #???????????????????? | | ## # # #???????????????????? | | ?# ## # #??????????##???????? | | ?# ## # ###########"##??????? | | ?# " ## # # #??????? | | ?# """ ## # # #??????? | | ## """ ## # # #??????? | | + " ## # # #??????? | | ## #############"# # " #??????? | | ?# #######?????### # """" #??????? | | ########+## #??????## # """"" #??????? | +----------------------------------------------------+ Best States ------------- Heat Dissipation 165 Coolant Potential 80 Energy Generation 74 Energy Capacity 580 Matter Stores 300 Matter Capacity 300 Sight Range 16 Robot Scan Range 16 Terrain Scan Density 10 ECM Strength 2 Jamming Range 14 Power Amplification 30 Additional Mass Support 9 EM Shielding 2 Armor Coverage 625 Propulsion Shielding 66 Weapon Shielding 66 Melee Speed Boost 20 Evasion (%) 69 Melee Accuracy 14 Core Analysis 6 Recoil Reduction 2 Particle Charging 15 Offensive Hacking 10 Defensive Hacking 10 Item Schematics ----------------- Assault Drone Bay | -4/Zhirov | Free Exp. Heat Sink | -4/Zhirov | Free Exp. Optical Array | -4/Zhirov | Free Imp. Arc Thrower | -4/Zhirov | Free Robot Schematics ------------------ None Fabricated ------------ Nothing Repaired ---------- Greatsword | 55% | -5/Factory Studied --------- Greatsword | -5/Factory | Hacked Katana | -5/Factory | Hacked Carbon-fiber Leg | -5/Factory | Hacked Flexi-carbon Leg | -5/Factory | Hacked Power Maul | -4/Factory | Hacked Alien Tech Used ----------------- Integrated Reactor Achievements -------------- A Powerful Ally? Adventurer Art Critic Batter Up Bob, First Of His Name Charge!!! Link The Feds Longdome?! Low-level Research Origins Packrat Plot Armor Strength In Numbers Challenges ------------ None Game ------ Seed ShadeRecoilNeutralizer Manual? 0 Play Time 02:23:44 Cumulative 53.2 hours Start 2026.06.25 @ 14:33:37 End 2026.06.25 @ 17:06:25 Sessions 1 Manual Loads 0 Difficulty Rogue Special Mode None Game No. 56 Rogue 56 Adventurer 0 Explorer 0 Win Type - Total 2 Types 2/0/0/0/0/0/0/0/0/0 Lore% 36 Gallery% 37 Achievement% 36 Wizard Run 0 Options --------- Layout 1 ASCII 0 Keyboard 0 Movement Arrows Keybinds 0 Fullscreen 2 Font 32/SmallcapsGlow Map View 50x35 Zoom Use 0% Tactical HUD 1 Map Filters NONE Filters NONE Steam 1 RUN: 3f4cc873-dc2c-48b3-9260-19245731b053